bitfinex/quotes_SOLUSD_20240703
["timestamp","ask_amount","ask_price","bid_price","bid_amount"]
[1720036396881,34.4207,140.24,140.19,7.17536711]
[1720036397686,34.4207,140.24,140.19,0.04226711]
[1720036397882,40.5838,140.3,140.19,0.21226711]
[1720036398180,27.29,140.28,140.2,0.17]
[1720036398378,45.1119,140.28,140.2,0.34]
[1720036398579,27.29,140.26,140.2,0.34]
[1720036398793,27.29,140.26,140.2,0.17]
[1720036399084,7.1314,140.23,140.2,0.17]
[1720036399294,7.1314,140.23,140.19,0.38226711]
[1720036399465,7.1307,140.24,140.19,7.51536711]
[1720036400181,7.1307,140.24,140.19,25.34776711]
[1720036400378,7.1302,140.25,140.2,7.1325]
[1720036400584,7.1302,140.25,140.21,0.17]
[1720036400787,27.29,140.28,140.21,18.17]
[1720036400963,34.4188,140.28,140.23,7.1309]
[1720036401164,34.4188,140.28,140.24,0.17]
[1720036401374,27.29,140.28,140.24,7.3005]
[1720036401673,16.1994,140.3,140.24,7.3005]
[1720036401674,7.1276,140.3,140.25,7.13]
[1720036401882,7.1276,140.3,140.26,0.17]
[1720036402586,6.0415,140.37,140.26,0.17]
[1720036402782,7.1256,140.34,140.3,17.818]
[1720036402988,33.3315,140.37,140.29,0.34]
[1720036403191,7.1262,140.33,140.3,0.34]
[1720036403497,7.1261,140.33,140.3,0.34]
[1720036403663,7.1257,140.34,140.3,0.34]
[1720036403862,7.1257,140.34,140.3,0.17]
[1720036404571,7.1246,140.36,140.31,7.127]
[1720036404891,7.1246,140.36,140.3,0.17]
[1720036404892,7.1246,140.36,140.32,0.34]
[1720036405279,7.1246,140.36,140.31,0.34]
[1720036405790,7.125,140.35,140.31,0.34]
[1720036406001,27.29,140.37,140.31,0.34]
[1720036406301,7.1257,140.34,140.3,0.34]
[1720036406901,27.29,140.37,140.3,0.34]
[1720036407199,7.1254,140.35,140.3,7.4674]
[1720036407429,7.1246,140.36,140.31,7.1269]
[1720036407588,7.1246,140.36,140.32,0.34]
[1720036407982,7.1251,140.35,140.32,0.34]
[1720036408178,7.1246,140.36,140.31,7.467]
[1720036408681,34.4141,140.37,140.31,7.467]
[1720036408870,7.124,140.37,140.32,7.1261]
[1720036409069,7.124,140.37,140.33,0.17]
[1720036409302,7.1235,140.38,140.33,7.4659]
[1720036409506,27.29,140.39,140.33,0.17]
[1720036409790,22.0035,140.44,140.33,0.17]
[1720036409791,27.29,140.42,140.33,0.17]
[1720036410165,7.1223,140.41,140.36,7.1244]
[1720036410365,7.1223,140.41,140.37,0.17]
[1720036410983,69.5701,140.48,140.37,32.9028]
[1720036411193,27.29,140.46,140.38,0.34]
[1720036411776,7.1208,140.44,140.39,7.1226]
[1720036411993,7.1208,140.44,140.4,0.34]
[1720036412579,7.121,140.43,140.4,0.34]
[1720036412784,7.121,140.43,140.4,0.17]
[1720036412985,7.121,140.43,140.37,39.6966]
[1720036413182,27.29,140.44,140.38,0.17]
[1720036413392,27.29,140.44,140.37,14.763]
[1720036413701,34.4105,140.44,140.38,7.2931]
[1720036413902,7.1211,140.43,140.38,0.17]
[1720036414107,7.1211,140.43,140.38,7.2934]
[1720036414400,27.29,140.44,140.39,7.1229]
[1720036414401,34.4105,140.44,140.39,7.1229]
[1720036414576,7.1205,140.44,140.4,0.17]
[1720036414777,7.121,140.43,140.4,0.17]
[1720036415200,7.121,140.43,140.39,0.34]
[1720036415578,27.29,140.46,140.39,0.34]
[1720036416601,7.1226,140.4,140.37,14.763]
[1720036416786,7.1226,140.4,140.38,0.34]
[1720036416981,7.122,140.41,140.38,0.34]
[1720036417279,7.1216,140.42,140.38,0.34]
[1720036419091,7.1211,140.43,140.38,7.4634]
[1720036419703,27.29,140.44,140.39,7.1227]
[1720036419909,7.1204,140.45,140.4,7.4624]
[1720036420108,7.1204,140.45,140.4,7.2924]
[1720036420289,7.1204,140.45,140.41,0.17]
[1720036421598,7.1196,140.46,140.41,7.2919]
[1720036421796,7.1196,140.46,140.42,0.17]
[1720036422811,7.12,140.45,140.42,0.17]
[1720036422995,7.12,140.45,140.41,0.34]
[1720036425425,7.1195,140.46,140.41,7.4619]
[1720036426009,17.7964,140.48,140.41,7.4619]
[1720036426311,17.7964,140.48,140.41,0.34]
[1720036426500,7.1193,140.47,140.42,7.1212]
[1720036426699,7.1204,140.44,140.43,0.34]
[1720036426902,7.1201,140.45,140.43,0.34]
[1720036427224,45.086,140.49,140.44,0.17]
[1720036427393,45.086,140.49,140.42,0.17]
[1720036427590,7.1203,140.45,140.41,0.34]
[1720036428195,7.1205,140.44,140.41,0.34]
[1720036428522,7.1234,140.39,140.37,14.763]
[1720036428894,7.1227,140.4,140.37,14.763]
[1720036429803,7.1227,140.4,140.38,0.34]
[1720036429994,7.1221,140.41,140.38,0.34]
[1720036430891,7.1228,140.4,140.38,0.34]
[1720036431909,7.1221,140.41,140.38,0.34]
[1720036432298,45.0926,140.43,140.37,14.763]
[1720036432497,7.1225,140.4,140.37,14.763]
[1720036432698,45.0926,140.43,140.37,14.763]
[1720036432898,7.1226,140.4,140.37,14.763]
[1720036433105,7.1221,140.41,140.37,14.763]
[1720036433331,7.1225,140.4,140.37,14.763]
[1720036433526,7.1221,140.41,140.37,14.763]
[1720036434420,45.0951,140.41,140.34,15.8654]
[1720036434605,7.124,140.37,140.34,15.8654]
[1720036434811,7.1237,140.38,140.34,15.8654]
[1720036435722,34.4135,140.39,140.34,15.8654]
[1720036436023,34.4135,140.39,140.34,22.9907]
[1720036436024,7.1235,140.39,140.34,22.9907]
[1720036436220,27.29,140.41,140.36,7.1242]
[1720036436421,7.122,140.41,140.36,7.1242]
[1720036437022,27.29,140.43,140.35,17.982]
[1720036437023,7.1225,140.4,140.35,17.982]
[1720036437323,7.1225,140.4,140.36,0.34]
[1720036437823,7.1221,140.41,140.36,0.34]
[1720036438213,7.1225,140.4,140.36,0.34]
[1720036438414,27.29,140.43,140.36,0.34]
[1720036438713,27.29,140.43,140.35,0.34]
[1720036439523,7.1226,140.4,140.35,0.34]
[1720036439710,27.29,140.41,140.35,0.34]
[1720036440108,7.1231,140.39,140.35,0.34]
[1720036441109,7.1235,140.38,140.35,0.34]
[1720036441303,7.1235,140.38,140.35,0.17]
[1720036441510,7.1241,140.37,140.34,15.8654]
[1720036441919,27.29,140.41,140.34,22.9909]
[1720036442121,7.1233,140.39,140.34,22.9909]
[1720036442305,27.29,140.41,140.34,15.8654]
[1720036442514,17.8041,140.42,140.32,6.3814]
[1720036442515,27.29,140.39,140.32,6.3814]
[1720036442703,5.63897283,140.45,140.37,7.1236]
[1720036442900,27.29,140.44,140.37,7.1236]
[1720036443122,7.1217,140.42,140.37,7.1236]
[1720036443530,7.1208,140.44,140.38,17.8081]
[1720036443724,49.1053,140.46,140.39,0.17]
[1720036443924,49.1053,140.46,140.39,0.34]
[1720036444307,7.1208,140.44,140.39,7.4627]
[1720036444815,7.121,140.43,140.39,0.34]
[1720036446015,27.29,140.46,140.39,0.34]
[1720036446016,7.1215,140.42,140.39,0.34]
[1720036447722,45.0889,140.46,140.39,0.34]
[1720036447927,7.1211,140.43,140.39,0.34]
[1720036448138,7.1214,140.42,140.39,0.34]
[1720036448425,7.1211,140.43,140.39,0.34]
[1720036449141,7.1215,140.42,140.39,0.34]
[1720036452744,7.1197,140.46,140.41,7.1219]
[1720036453048,7.1197,140.46,140.42,0.34]
[1720036453817,7.12,140.45,140.42,0.34]
[1720036454017,7.12,140.45,140.41,0.34]
[1720036454233,7.1196,140.46,140.41,7.4618]
[1720036455319,27.29,140.49,140.41,18.1447]
[1720036455535,27.29,140.49,140.43,7.1208]
[1720036455746,27.29,140.49,140.46,7.1194]
[1720036455940,27.29,140.52,140.45,17.7997]
[1720036456140,7.1172,140.51,140.46,7.4594]
[1720036456962,7.1174,140.5,140.46,0.34]
[1720036458762,7.118,140.49,140.46,0.34]
[1720036458952,7.1176,140.5,140.46,0.34]
[1720036459944,17.7898,140.53,140.46,0.34]
[1720036459945,7.118,140.49,140.46,0.34]
[1720036460346,7.118,140.49,140.45,0.34]
[1720036460569,7.1161,140.53,140.48,7.118]
[1720036460777,7.1161,140.53,140.49,0.34]
[1720036460945,7.1164,140.52,140.49,0.34]
[1720036462440,7.1177,140.5,140.45,24.9192]
[1720036462652,7.1177,140.5,140.46,0.34]
[1720036463065,7.1171,140.51,140.46,7.4594]
[1720036463673,7.1175,140.5,140.46,0.34]
[1720036464045,7.1175,140.5,140.46,7.4594]
[1720036464251,7.117,140.51,140.46,7.4594]
[1720036464874,7.117,140.51,140.47,7.1189]
[1720036465090,7.1166,140.52,140.48,0.34]
[1720036465580,34.4061,140.53,140.48,7.4583]
[1720036466073,7.1104537,140.56,140.51,7.1167]
[1720036466074,35.2316537,140.56,140.51,7.1167]
[1720036466380,35.2316537,140.56,140.52,0.34]
[1720036466381,7.9416537,140.56,140.52,0.34]
[1720036466581,7.1149,140.55,140.52,0.34]
[1720036466954,0.8271537,140.56,140.52,0.34]
[1720036466955,7.1154,140.54,140.52,0.34]
[1720036468250,7.1164,140.53,140.48,22.4182]
[1720036468473,27.29,140.55,140.48,15.2999]
[1720036469264,7.1172,140.51,140.48,15.2999]
[1720036469449,27.29,140.55,140.48,15.2999]
[1720036469450,7.1167,140.52,140.48,15.2999]
[1720036470354,7.116,140.53,140.48,22.4182]
[1720036470755,7.116,140.53,140.49,0.17]
[1720036470966,7.1165,140.52,140.49,0.17]
[1720036471175,7.116,140.53,140.49,0.17]
[1720036471761,7.1166,140.52,140.49,0.17]
[1720036473486,27.29,140.55,140.49,0.17]
[1720036473794,7.1154,140.54,140.49,7.4577]
[1720036474470,27.29,140.55,140.49,0.34]
[1720036474792,7.1162,140.53,140.49,0.34]
[1720036475293,7.1174,140.5,140.49,0.17]
[1720036475467,17.7888,140.54,140.49,0.17]
[1720036475990,7.1169,140.51,140.49,0.17]
[1720036476561,7.1165,140.52,140.49,0.17]
[1720036477395,7.1169,140.51,140.49,0.17]
[1720036477892,7.1165,140.52,140.49,0.17]
[1720036479990,7.1157,140.54,140.49,17.9648]
[1720036480199,7.1149,140.55,140.51,7.1168]
[1720036480398,7.9417537,140.56,140.51,7.1168]
[1720036480597,7.9417537,140.56,140.52,0.34]
[1720036481099,7.1149,140.55,140.52,0.34]
[1720036481275,0.8271537,140.56,140.52,7.4564]
[1720036481475,0.8271537,140.56,140.53,24.9055]
[1720036481690,0.8271537,140.56,140.54,0.34]
[1720036481990,7.9419537,140.56,140.54,0.34]
[1720036482173,7.1154,140.54,140.5,24.1396]
[1720036482372,7.1154,140.54,140.51,0.17]
[1720036482583,7.1149,140.55,140.51,0.34]
[1720036483690,0.8271537,140.56,140.51,0.34]
[1720036483691,7.1154,140.54,140.51,0.34]
[1720036483996,7.115,140.55,140.51,0.34]
[1720036484880,0.8271537,140.56,140.52,17.7908]
[1720036485182,7.9416537,140.56,140.53,0.34]
[1720036485499,7.9416537,140.56,140.53,0.17]
[1720036485804,7.9416537,140.56,140.52,0.17]
[1720036485998,0.8271537,140.56,140.52,0.17]
[1720036486503,0.8271537,140.56,140.52,7.286]
[1720036486703,0.8271537,140.56,140.53,0.17]
[1720036489186,0.8271537,140.56,140.53,7.2856]
[1720036489505,0.8271537,140.56,140.54,0.17]
[1720036490201,0.8271537,140.56,140.53,0.34]
[1720036490403,7.9416537,140.56,140.54,0.17]
[1720036490610,7.1154,140.54,140.49,7.1177]
[1720036491279,0.8271537,140.56,140.48,33.0948]
[1720036491486,0.8271537,140.56,140.5,17.7935]
[1720036491791,0.8271537,140.56,140.48,15.2999]
[1720036491792,7.1157,140.54,140.51,0.17]
[1720036491996,7.1157,140.54,140.5,0.34]
[1720036492887,7.1151,140.55,140.5,7.4574]
[1720036493311,27.29,140.55,140.48,15.2999]
[1720036493510,7.1162,140.53,140.48,22.4183]
[1720036493687,13.65,140.5,140.48,15.2999]
[1720036493890,13.65,140.5,140.48,22.418]
[1720036495698,13.65,140.5,140.49,0.17]
[1720036495907,13.65,140.5,140.49,0.34]
[1720036497308,7.1155,140.54,140.49,7.4579]
[1720036497505,13.65,140.52,140.5,7.1171]
[1720036497806,13.65,140.52,140.51,0.34]
[1720036498203,13.65,140.52,140.51,0.17]
[1720036498401,13.65,140.52,140.5,0.34]
[1720036498703,13.65,140.52,140.48,40.2139]
[1720036498704,13.65,140.51,140.49,0.34]
[1720036499087,13.65,140.51,140.49,7.4577]
[1720036500885,13.65,140.51,140.5,7.1174]
[1720036501093,13.65,140.52,140.5,7.4574]
[1720036501301,13.65,140.52,140.51,0.34]
[1720036501702,13.65,140.52,140.51,0.17]
[1720036501902,13.65,140.52,140.5,0.34]
[1720036502491,13.65,140.52,140.5,7.4574]
[1720036502901,13.65,140.52,140.5,0.34]
[1720036504013,7.1154,140.54,140.5,0.34]
[1720036504208,0.8271537,140.56,140.5,18.1329]
[1720036504411,7.9417537,140.56,140.51,7.1164]
[1720036504709,0.8271537,140.56,140.52,7.4564]
[1720036504905,13.65,140.54,140.53,0.17]
[1720036505104,13.65,140.55,140.53,0.17]
[1720036505797,21.5915537,140.56,140.53,0.17]
[1720036505998,21.5915537,140.56,140.52,0.17]
[1720036505999,14.4771537,140.56,140.52,7.4564]
[1720036506205,0.8271537,140.56,140.55,7.1149]
[1720036506419,0.8271537,140.56,140.55,0.34]
[1720036506719,0.8271537,140.56,140.55,29.311]
[1720036507123,0.8271537,140.56,140.55,16.1312]
[1720036507999,0.8271537,140.56,140.55,23.2461]
[1720036509807,0.8271537,140.56,140.55,36.8961]
[1720036510014,0.8271537,140.56,140.55,23.2461]
[1720036511112,0.8271537,140.56,140.55,15.7912]
[1720036511613,0.8271537,140.56,140.55,22.9061]
[1720036512308,0.8271537,140.56,140.53,17.7892]
[1720036512632,13.65,140.55,140.53,24.9049]
[1720036512836,14.4771537,140.56,140.53,24.9049]
[1720036513130,14.4771537,140.56,140.53,24.9051]
[1720036513319,0.8271537,140.56,140.53,24.9051]
[1720036513729,0.8271537,140.56,140.54,0.17]
[1720036513911,0.8271537,140.56,140.54,0.34]
[1720036514231,0.8271537,140.56,140.49,100.0]
[1720036514232,7.1152,140.55,140.47,23.49954122]
[1720036514440,7.1173,140.51,140.47,7.40404122]
[1720036514732,7.1174,140.5,140.45,24.9194]
[1720036514912,7.1171,140.51,140.46,7.1194]
[1720036515120,7.1166,140.52,140.46,7.1194]
[1720036515308,45.0691,140.54,140.45,17.7995]
[1720036515905,45.0691,140.54,140.46,0.34]
[1720036516128,27.28,140.52,140.46,0.34]
[1720036516440,7.1169,140.51,140.46,7.4594]
[1720036516624,34.3965,140.52,140.47,7.1187]
[1720036516824,34.3965,140.52,140.48,0.34]
[1720036517631,7.1169,140.51,140.48,0.34]
[1720036517801,34.3965,140.52,140.47,7.4588]
[1720036518007,7.117,140.51,140.47,0.34]
[1720036518223,7.117,140.51,140.48,0.17]
[1720036518606,34.3965,140.52,140.46,7.4593]
[1720036518816,7.1169,140.51,140.46,7.4593]
[1720036519013,7.1169,140.51,140.46,0.34]
[1720036519517,7.1169,140.51,140.46,7.4594]
[1720036519824,34.3964,140.52,140.47,7.1188]
[1720036520033,34.3964,140.52,140.48,0.34]
[1720036520813,7.117,140.51,140.48,0.34]
[1720036521019,34.3966,140.52,140.47,0.34]
[1720036521223,27.28,140.52,140.48,7.1181]
[1720036521449,16.0479,140.55,140.48,7.1182]
[1720036521613,16.0479,140.55,140.47,25.255]
[1720036523014,7.1167,140.52,140.47,25.255]
[1720036523239,7.1167,140.52,140.47,18.1363]
[1720036523419,7.1167,140.52,140.47,25.255]
[1720036524432,7.1159,140.54,140.47,18.1363]
[1720036524649,16.0479,140.55,140.49,7.1174]
[1720036524837,16.0479,140.55,140.5,0.34]
[1720036525345,16.0479,140.55,140.5,0.17]
[1720036525524,16.0479,140.55,140.49,0.34]
[1720036525727,16.0479,140.55,140.49,7.4579]
[1720036526045,7.1161,140.53,140.49,0.34]
[1720036526735,7.1155,140.54,140.49,7.4579]
[1720036526937,16.0479,140.55,140.49,18.1344]
[1720036527143,7.1154,140.54,140.49,25.252]
[1720036528842,7.1159,140.53,140.49,18.1344]
[1720036529340,7.1155,140.54,140.49,25.2523]
[1720036531052,7.1155,140.54,140.49,25.2522]
[1720036531217,28.1071537,140.56,140.49,18.1344]
[1720036531642,7.1157,140.54,140.49,25.2522]
[1720036532141,7.1151,140.55,140.5,7.1174]
[1720036532348,7.1151,140.55,140.51,0.34]
[1720036533346,7.1154,140.54,140.51,0.34]
[1720036533556,7.1154,140.54,140.5,0.34]
[1720036533727,13.65,140.52,140.5,0.34]
[1720036534652,7.1154,140.54,140.5,0.34]
[1720036534653,13.65,140.53,140.5,0.34]
[1720036536957,55.4271537,140.56,140.5,7.4574]
[1720036537116,0.8271537,140.56,140.51,13.65]
[1720036537322,0.8271537,140.56,140.53,24.9044]
[1720036537550,14.4771537,140.56,140.54,0.34]
[1720036539432,0.8271537,140.56,140.54,0.34]
[1720036539748,0.8271537,140.56,140.55,20.7649]
[1720036539923,0.8271537,140.56,140.55,21.1049]
[1720036540532,0.8271537,140.56,140.55,27.2398]
[1720036542244,0.8271537,140.56,140.55,6.4749]
[1720036543131,0.8271537,140.56,140.55,0.34]
[1720036544129,0.8271537,140.56,140.51,6.5692]
[1720036544335,21.5917537,140.56,140.51,13.6861]
[1720036544544,13.65,140.53,140.5,15.1124]
[1720036544763,13.65,140.51,140.48,7.1181]
[1720036545130,7.1156,140.54,140.48,7.1181]
[1720036545335,13.65,140.52,140.49,7.1179]
[1720036545929,13.65,140.52,140.47,45.40332967]
[1720036546129,13.65,140.52,140.49,7.1179]
[1720036546563,13.65,140.52,140.49,24.9127]
[1720036546856,13.65,140.52,140.5,7.1172]
[1720036547066,13.65,140.52,140.51,0.34]
[1720036547355,7.9416537,140.56,140.51,0.34]
[1720036547571,13.65,140.53,140.51,0.34]
[1720036547738,7.9416537,140.56,140.51,0.34]
[1720036548064,7.1149,140.55,140.51,0.34]
[1720036548444,7.9415537,140.56,140.51,7.4565]
[1720036549050,0.8271537,140.56,140.51,0.34]
[1720036549249,7.1162,140.53,140.5,0.34]
[1720036549456,7.1162,140.53,140.49,0.34]
[1720036550152,7.1156,140.54,140.49,7.4578]
[1720036551749,18.6133537,140.56,140.47,13.95682967]
[1720036552062,7.117,140.51,140.46,40.9887]
[1720036552257,7.1175,140.5,140.46,40.9887]
[1720036552452,7.1175,140.5,140.46,33.8695]
[1720036552850,7.1171,140.51,140.46,40.9889]
[1720036553051,7.1171,140.51,140.46,24.9175]
[1720036553266,39.2047,140.54,140.45,7.1198]
[1720036553566,7.1175,140.5,140.45,7.1198]
[1720036553749,7.1184,140.48,140.43,31.5711]
[1720036553936,45.0813,140.52,140.43,17.8012]
[1720036554336,7.1182,140.49,140.43,17.8012]
[1720036554770,7.1182,140.49,140.44,0.17]
[1720036555065,7.1182,140.49,140.44,7.1203]
[1720036555265,45.0813,140.52,140.43,17.8012]
[1720036555675,7.118,140.49,140.44,7.1201]
[1720036556040,7.1171,140.51,140.45,17.7998]
[1720036556255,7.1171,140.51,140.46,7.1191]
[1720036556448,7.1171,140.51,140.46,7.2891]
[1720036556764,27.29,140.52,140.46,0.17]
[1720036556945,7.1176,140.5,140.46,0.34]
[1720036557859,7.1179,140.49,140.46,0.34]
[1720036559354,27.29,140.52,140.46,0.34]
[1720036559956,7.1196,140.46,140.42,40.4539]
[1720036560260,7.1191,140.47,140.42,40.4539]
[1720036560565,7.1191,140.47,140.41,7.39318131]
[1720036560566,24.0971,140.48,140.41,7.39318131]
[1720036560866,7.1204,140.44,140.4,24.9282]
[1720036561070,24.0971,140.48,140.39,13.46597071]
[1720036561362,24.0971,140.48,140.36,253.7]
[1720036561363,27.29,140.46,140.36,253.7]
[1720036561561,45.0917,140.44,140.35,6.6053]
[1720036561763,7.1221,140.41,140.36,24.9356]
[1720036561946,7.1225,140.4,140.36,17.8112]
[1720036562138,7.1223,140.41,140.36,24.9357]
[1720036563359,7.1216,140.42,140.37,7.1239]
[1720036563686,7.1216,140.42,140.37,7.1238]
[1720036564268,7.1216,140.42,140.38,0.17]
[1720036564568,7.1216,140.42,140.38,0.34]
[1720036564973,27.29,140.46,140.39,7.1226]
[1720036565178,7.1205,140.44,140.4,0.34]
[1720036565964,27.29,140.46,140.4,18.1459]
[1720036566152,7.1197,140.46,140.41,7.1218]
[1720036566475,16.2186,140.47,140.42,0.34]
[1720036566643,7.1204,140.45,140.42,0.17]
[1720036566845,7.1204,140.45,140.41,0.17]
[1720036567142,7.121,140.43,140.4,0.17]
[1720036567343,45.0888,140.46,140.36,17.8102]
[1720036567569,7.1223,140.41,140.36,24.9345]
[1720036567749,7.1216,140.42,140.37,7.1238]
[1720036568075,45.0888,140.46,140.35,6.6053]
[1720036568247,7.1215,140.42,140.38,17.8087]
[1720036568656,45.0888,140.46,140.35,6.6053]
[1720036568657,7.1223,140.41,140.35,13.7299]
[1720036568890,45.0915,140.44,140.35,6.6053]
[1720036569071,7.1221,140.41,140.36,7.1244]
[1720036569272,7.1229,140.4,140.35,6.6053]
[1720036569576,7.1229,140.4,140.35,13.7303]
[1720036570377,7.1229,140.4,140.36,0.34]
[1720036570585,7.1221,140.41,140.36,7.4643]
[1720036570886,34.0163,140.47,140.36,0.34]
[1720036571062,7.1222,140.41,140.36,7.4641]
[1720036571955,7.1222,140.41,140.36,7.2941]
[1720036573383,7.1232,140.39,140.37,0.17]
[1720036574260,7.1227,140.4,140.36,0.34]
[1720036575170,7.1231,140.39,140.36,0.34]
[1720036575392,27.29,140.42,140.35,0.17]
[1720036575568,7.1235,140.38,140.35,0.17]
[1720036575777,7.124,140.37,140.35,0.17]
[1720036576079,7.124,140.37,140.31,59.7754]
[1720036576276,7.1253,140.35,140.3,23.2701]
[1720036576485,7.1256,140.34,140.3,23.2701]
[1720036576691,7.1252,140.35,140.3,23.2701]
[1720036577189,7.1258,140.34,140.28,17.8202]
[1720036578569,7.1252,140.35,140.3,7.1275]
[1720036579093,7.1247,140.36,140.31,7.127]
[1720036580471,34.414,140.37,140.32,7.1261]
[1720036580792,27.29,140.37,140.3,17.8187]
[1720036581793,17.8063,140.4,140.3,17.8187]
[1720036581984,27.29,140.36,140.3,17.8187]
[1720036583096,7.1257,140.34,140.29,7.468]
[1720036584380,7.1251,140.35,140.3,7.1274]
[1720036584581,33.5256,140.36,140.31,17.8175]
[1720036584876,27.29,140.38,140.31,17.8175]
[1720036585106,7.1241,140.37,140.32,7.1261]
[1720036585598,7.124,140.37,140.32,7.1263]
[1720036586087,7.1247,140.36,140.31,25.2844]
[1720036586287,7.1247,140.36,140.32,0.34]
[1720036587010,39.53363071,140.41,140.33,17.8147]
[1720036587210,7.1242,140.37,140.34,0.17]
[1720036587509,66.82363071,140.41,140.32,0.34]
[1720036587510,7.1245,140.36,140.32,0.34]
[1720036588390,7.1245,140.36,140.32,7.4665]
[1720036588581,7.1245,140.36,140.32,0.34]
[1720036589982,27.29,140.39,140.32,0.34]
[1720036589983,7.125,140.35,140.32,0.34]
[1720036590308,7.1256,140.34,140.32,0.34]
[1720036590483,7.1256,140.34,140.31,0.34]
[1720036591012,7.1252,140.35,140.31,0.34]
[1720036591222,7.1247,140.36,140.31,7.467]
[1720036591889,7.1251,140.35,140.31,7.467]
[1720036592202,7.1251,140.35,140.31,0.34]
[1720036593212,7.1251,140.35,140.31,7.467]
[1720036594611,7.1247,140.36,140.31,7.467]
[1720036595305,7.1247,140.36,140.32,7.1265]
[1720036595511,7.1247,140.36,140.33,0.34]
[1720036596505,7.1252,140.35,140.32,0.17]
[1720036596701,7.1252,140.35,140.31,0.34]
[1720036599609,7.1252,140.35,140.31,7.467]
[1720036599996,7.1252,140.35,140.31,0.34]
[1720036600712,27.29,140.37,140.31,0.34]
[1720036601213,7.1253,140.35,140.31,0.34]
[1720036603803,13.68,140.33,140.31,0.34]
[1720036604006,13.68,140.32,140.28,16.3082]
[1720036604205,13.68,140.3,140.28,23.4366]
[1720036604408,13.68,140.3,140.28,16.3082]
[1720036604715,20.8081,140.29,140.26,7.44015566]
[1720036604918,13.68,140.27,140.24,17.8262]
[1720036605098,13.68,140.26,140.24,17.8262]
[1720036605300,70.8599,140.35,140.23,7.1309]
[1720036605301,13.68,140.25,140.23,7.1309]
[1720036605493,13.68,140.25,140.22,33.3129]
[1720036605494,13.68,140.25,140.22,15.4838]
[1720036605799,13.68,140.23,140.19,33.35796711]
[1720036606013,13.68,140.22,140.19,15.52606711]
[1720036606315,13.68,140.22,140.19,22.65886711]
[1720036606705,13.68,140.22,140.2,7.1325]
[1720036606905,7.1298,140.26,140.21,7.1321]
[1720036607112,13.68,140.23,140.21,7.1321]
[1720036607313,13.68,140.23,140.2,17.8314]
[1720036607314,13.68,140.23,140.2,25.3039]
[1720036607516,13.68,140.23,140.21,0.34]
[1720036607702,7.1303,140.25,140.21,0.34]
[1720036607902,7.1297,140.26,140.21,7.4721]
[1720036608403,7.1301,140.25,140.21,0.34]
[1720036609717,7.1308,140.24,140.2,17.8314]
[1720036609917,7.1313,140.23,140.19,0.04226711]
[1720036610297,17.8246,140.26,140.19,0.04226711]
[1720036610501,7.1319,140.22,140.19,0.04226711]
[1720036611425,7.1312,140.23,140.19,0.04226711]
[1720036613228,27.4,140.27,140.19,25.17796711]